lending/lending_fUSD_20240610
["ID","MTS","AMOUNT","RATE_DAILY","PERIOD"]
[328979742,1718039457894,-619.44,0.00029997,4]
[328979743,1718039457903,-619.44,0.00029997,4]
[328979744,1718039457914,-619.44,0.00029997,4]
[328979745,1718039457924,-500.0,0.00029997,4]
[328979746,1718039457934,-500.0,0.00029997,4]
[328979747,1718039457944,-500.0,0.00029997,4]
[328979748,1718039457954,-313.35,0.00029997,4]
[328979749,1718039457964,-700.28,0.00029997,4]
[328979750,1718039457974,-700.28,0.00029997,4]
[328979751,1718039457984,-700.28,0.00029997,4]
[328979752,1718039457993,-700.28,0.00029997,4]
[328979753,1718039458003,-700.28,0.00029997,4]
[328979754,1718039458014,-500.0,0.00029997,4]
[328979755,1718039458023,-700.28,0.00029997,4]
[328979756,1718039458033,-500.0,0.00029997,4]
[328979757,1718039458043,-500.0,0.00029997,4]
[328979758,1718039458052,-500.0,0.00029997,4]
[328979759,1718039458061,-500.0,0.00029997,4]
[328979760,1718039458071,-500.0,0.00029997,4]
[328979761,1718039458081,-500.0,0.00029997,4]
[328979762,1718039458091,-500.0,0.00029997,4]
[328979763,1718039458101,-500.0,0.00029997,4]
[328979764,1718039458111,-500.0,0.00029997,4]
[328979765,1718039458121,-253.13986285,0.00029997,4]
[328979766,1718039458131,-980.46,0.00029997,4]
[328979767,1718039458141,-980.46,0.00029997,4]
[328979768,1718039458151,-980.46,0.00029997,4]
[328979769,1718039458161,-500.0,0.00029997,4]
[328979770,1718039458171,-980.46,0.00029997,4]
[328979771,1718039458180,-980.46,0.00029997,4]
[328979772,1718039458191,-500.0,0.00029997,4]
[328979773,1718039458204,-500.0,0.00029997,4]
[328979774,1718039458213,-500.0,0.00029997,4]
[328979775,1718039458223,-500.0,0.00029997,4]
[328979776,1718039458232,-500.0,0.00029997,4]
[328979777,1718039458243,-500.0,0.00029997,4]
[328979778,1718039458253,-500.0,0.00029997,4]
[328979779,1718039458262,-500.0,0.00029997,4]
[328979780,1718039458275,-500.0,0.00029997,4]
[328979781,1718039458285,-500.0,0.00029997,4]
[328979782,1718039458295,-581.92221667,0.00029997,4]
[328979783,1718039458305,-500.0,0.00029997,4]
[328979784,1718039458317,-500.0,0.00029997,4]
[328979785,1718039458326,-500.0,0.00029997,4]
[328979786,1718039458336,-316.9514113,0.00029997,4]
[328979787,1718039458345,-577.28,0.00029997,4]
[328979788,1718039458355,-577.28,0.00029997,4]
[328979789,1718039458365,-577.28,0.00029997,4]
[328979790,1718039458375,-577.28,0.00029997,4]
[328979791,1718039458384,-577.28,0.00029997,4]
[328979792,1718039458395,-500.0,0.00029997,4]
[328979793,1718039458404,-305.30754878,0.00029997,4]
[328979794,1718039458415,-909.81,0.00029997,4]
[328979795,1718039458425,-909.81,0.00029997,4]
[328979796,1718039458434,-909.81,0.00029997,4]
[328979797,1718039458444,-909.81,0.00029997,4]
[328979798,1718039458453,-909.81,0.00029997,4]
[328979799,1718039458463,-500.0,0.00029997,4]
[328979800,1718039458473,-500.0,0.00029997,4]
[328979801,1718039458482,-500.0,0.00029997,4]
[328979802,1718039458491,-500.0,0.00029997,4]
[328979803,1718039458500,-500.0,0.00029997,4]
[328979804,1718039458510,-500.0,0.00029997,4]
[328979805,1718039458519,-920.64,0.00029997,4]
[328979806,1718039458529,-920.64,0.00029997,4]
[328979807,1718039458538,-777.89,0.00029997,4]
[328979808,1718039458547,-920.64,0.00029997,4]
[328979809,1718039458557,-777.89,0.00029997,4]
[328979810,1718039458566,-920.64,0.00029997,4]
[328979811,1718039458576,-777.89,0.00029997,4]
[328979812,1718039458585,-920.64,0.00029997,4]
[328979813,1718039458595,-777.89,0.00029997,4]
[328979814,1718039458604,-920.64,0.00029997,4]
[328979815,1718039458614,-777.89,0.00029997,4]
[328979816,1718039458623,-1235.18,0.00029997,4]
[328979817,1718039458633,-1235.18,0.00029997,4]
[328979818,1718039458642,-1235.18,0.00029997,4]
[328979819,1718039458651,-1235.18,0.00029997,4]
[328979820,1718039458661,-500.0,0.00029997,4]
[328979821,1718039458671,-1235.18,0.00029997,4]
[328979822,1718039458680,-500.0,0.00029997,4]
[328979823,1718039458690,-1235.18,0.00029997,4]
[328979824,1718039458701,-500.0,0.00029997,4]
[328979825,1718039458711,-521.03450692,0.00029997,4]
[328979826,1718039458720,-500.0,0.00029997,4]
[328979827,1718039458729,-500.0,0.00029997,4]
[328979828,1718039458740,-500.0,0.00029997,4]
[328979829,1718039458751,-500.0,0.00029997,4]
[328979830,1718039458761,-500.0,0.00029997,4]
[328979831,1718039458771,-500.0,0.00029997,4]
[328979832,1718039458780,-1195.97,0.00029997,4]
[328979833,1718039458790,-1195.97,0.00029997,4]
[328979834,1718039458800,-1195.97,0.00029997,4]
[328979835,1718039458809,-1195.97,0.00029997,4]
[328979836,1718039458821,-1195.97,0.00029997,4]
[328979837,1718039458831,-1195.97,0.00029997,4]
[328979838,1718039458840,-500.0,0.00029997,4]
[328979839,1718039458850,-500.0,0.00029997,4]
[328979840,1718039458859,-500.0,0.00029997,4]
[328979841,1718039458869,-500.0,0.00029997,4]
[328979842,1718039458878,-500.0,0.00029997,4]
[328979843,1718039458888,-500.0,0.00029997,4]
[328979844,1718039458898,-623.93,0.00029997,4]
[328979845,1718039458908,-500.0,0.00029997,4]
[328979846,1718039458919,-623.93,0.00029997,4]
[328979847,1718039458928,-500.0,0.00029997,4]
[328979848,1718039458938,-500.0,0.00029997,4]
[328979849,1718039458948,-623.93,0.00029997,4]
[328979850,1718039458957,-500.0,0.00029997,4]
[328979851,1718039458967,-594.32563835,0.00029997,4]
[328979852,1718039458977,-623.93,0.00029997,4]
[328979853,1718039458987,-500.0,0.00029997,4]
[328979854,1718039458997,-623.93,0.00029997,4]
[328979855,1718039459006,-500.0,0.00029997,4]
[328979856,1718039459016,-623.93,0.00029997,4]
[328979857,1718039459026,-500.0,0.00029997,4]
[328979858,1718039459037,-500.0,0.00029997,4]
[328979859,1718039459047,-588.07760113,0.00029997,4]
[328979860,1718039459056,-500.0,0.00029997,4]
[328979861,1718039459066,-920.17,0.00029997,4]
[328979862,1718039459076,-500.0,0.00029997,4]
[328979863,1718039459085,-500.0,0.00029997,4]
[328979864,1718039459094,-920.17,0.00029997,4]
[328979865,1718039459104,-500.0,0.00029997,4]
[328979866,1718039459113,-920.17,0.00029997,4]
[328979867,1718039459123,-150.51543093,0.00029997,4]
[328979868,1718039459132,-920.17,0.00029997,4]
[328979869,1718039459142,-920.17,0.00029997,4]
[328979870,1718039459152,-920.17,0.00029997,4]
[328979871,1718039459162,-500.0,0.00029997,4]
[328979872,1718039459170,-500.0,0.00029997,4]
[328979873,1718039459179,-1123.64,0.00029997,4]
[328979874,1718039459188,-500.0,0.00029997,4]
[328979875,1718039459201,-1123.64,0.00029997,4]
[328979876,1718039459211,-1123.64,0.00029997,4]
[328979877,1718039459220,-394.4489183,0.00029997,4]
[328979878,1718039459229,-1123.64,0.00029997,4]
[328979879,1718039459239,-1123.64,0.00029997,4]
[328979880,1718039459250,-543.68,0.00029997,4]
[328979881,1718039459259,-1123.64,0.00029997,4]
[328979882,1718039459269,-543.68,0.00029997,4]
[328979883,1718039459280,-543.68,0.00029997,4]
[328979884,1718039459290,-543.68,0.00029997,4]
[328979885,1718039459299,-543.68,0.00029997,4]
[328979886,1718039459309,-543.68,0.00029997,4]
[328979887,1718039459318,-942.43,0.00029997,4]
[328979888,1718039459327,-942.43,0.00029997,4]
[328979889,1718039459336,-942.43,0.00029997,4]
[328979890,1718039459346,-942.43,0.00029997,4]
[328979891,1718039459355,-942.43,0.00029997,4]
[328979892,1718039459365,-942.43,0.00029997,4]
[328979893,1718039459375,-1258.25,0.00029997,4]
[328979894,1718039459384,-1258.25,0.00029997,4]
[328979895,1718039459394,-2028.72,0.00029997,4]
[328979896,1718039459403,-1258.25,0.00029997,4]
[328979897,1718039459415,-2028.72,0.00029997,4]
[328979898,1718039459424,-1258.25,0.00029997,4]
[328979899,1718039459433,-2028.72,0.00029997,4]
[328979900,1718039459443,-1258.25,0.00029997,4]
[328979901,1718039459453,-2028.72,0.00029997,4]
[328979902,1718039459463,-2028.72,0.00029997,4]
[328979903,1718039459472,-2028.72,0.00029997,4]
[328979904,1718039459482,-1007.94,0.00029997,4]
[328979905,1718039459492,-1007.94,0.00029997,4]
[328979906,1718039459502,-1007.94,0.00029997,4]
[328979907,1718039459511,-1007.94,0.00029997,4]
[328979908,1718039459521,-1007.94,0.00029997,4]
[328979909,1718039459531,-1007.94,0.00029997,4]
[328979910,1718039459541,-526.17,0.00029997,4]
[328979911,1718039459551,-526.17,0.00029997,4]
[328979912,1718039459560,-526.17,0.00029997,4]
[328979913,1718039459569,-526.17,0.00029997,4]
[328979914,1718039459579,-2001.03,0.00029997,4]
[328979915,1718039459589,-526.17,0.00029997,4]
[328979916,1718039459599,-2001.03,0.00029997,4]
[328979917,1718039459608,-526.17,0.00029997,4]
[328979918,1718039459618,-2001.03,0.00029997,4]
[328979919,1718039459627,-2001.03,0.00029997,4]
[328979920,1718039459636,-2001.03,0.00029997,4]
[328979921,1718039459646,-500.0,0.00029997,4]
[328979922,1718039459656,-2001.03,0.00029997,4]
[328979923,1718039459666,-500.0,0.00029997,4]
[328979924,1718039459675,-500.0,0.00029997,4]
[328979925,1718039459685,-500.0,0.00029997,4]
[328979926,1718039459696,-500.0,0.00029997,4]
[328979927,1718039459707,-500.0,0.00029997,4]
[328979928,1718039459717,-562.45623935,0.00029997,4]
[328979929,1718039459727,-500.0,0.00029997,4]
[328979930,1718039459737,-500.0,0.00029997,4]
[328979931,1718039459747,-712.6,0.00029997,4]
[328979932,1718039459757,-712.6,0.00029997,4]
[328979933,1718039459767,-712.6,0.00029997,4]
[328979934,1718039459778,-981.1,0.00029997,4]
[328979935,1718039459789,-712.6,0.00029997,4]
[328979936,1718039459798,-712.6,0.00029997,4]
[328979937,1718039459809,-981.1,0.00029997,4]
[328979938,1718039459819,-712.6,0.00029997,4]
[328979939,1718039459829,-981.1,0.00029997,4]
[328979940,1718039459838,-981.1,0.00029997,4]
[328979941,1718039459848,-981.1,0.00029997,4]
[328979942,1718039459858,-805.16,0.00029997,4]
[328979943,1718039459868,-805.16,0.00029997,4]
[328979944,1718039459877,-805.16,0.00029997,4]
[328979945,1718039459887,-805.16,0.00029997,4]
[328979946,1718039459898,-805.16,0.00029997,4]
[328979947,1718039459908,-500.0,0.00029997,4]
[328979948,1718039459919,-690.84,0.00029997,4]
[328979949,1718039459929,-690.84,0.00029997,4]
[328979950,1718039459939,-500.0,0.00029997,4]
[328979951,1718039459949,-690.84,0.00029997,4]
[328979952,1718039459959,-500.0,0.00029997,4]
[328979953,1718039459969,-690.84,0.00029997,4]
[328979954,1718039459980,-500.0,0.00029997,4]
[328979955,1718039459989,-690.84,0.00029997,4]
[328979956,1718039460000,-500.0,0.00029997,4]
[328979957,1718039460010,-690.84,0.00029997,4]
[328979958,1718039460020,-500.0,0.00029997,4]
[328979959,1718039460029,-642.77,0.00029997,4]
[328979960,1718039460039,-3314.97,0.00029997,4]
[328979961,1718039460049,-642.77,0.00029997,4]
[328979962,1718039460059,-642.77,0.00029997,4]
[328979963,1718039460068,-642.77,0.00029997,4]
[328979964,1718039460078,-642.77,0.00029997,4]
[328979965,1718039460088,-642.77,0.00029997,4]
[328979966,1718039460099,-1994.67,0.00029997,4]
[328979967,1718039460109,-1994.67,0.00029997,4]
[328979968,1718039460119,-508.97,0.00029997,4]
[328979969,1718039460131,-1994.67,0.00029997,4]
[328979970,1718039460141,-508.97,0.00029997,4]
[328979971,1718039460151,-1994.67,0.00029997,4]
[328979972,1718039460162,-508.97,0.00029997,4]
[328979973,1718039460172,-508.97,0.00029997,4]
[328979974,1718039460182,-1994.67,0.00029997,4]
[328979975,1718039460192,-508.97,0.00029997,4]
[328979976,1718039460313,-508.97,0.00029997,4]
[328979977,1718039460323,-1994.67,0.00029997,4]
[328979978,1718039460334,-604.21,0.00029997,4]
[328979979,1718039460344,-604.21,0.00029997,4]
[328979980,1718039460354,-604.21,0.00029997,4]
[328979981,1718039460363,-604.21,0.00029997,4]
[328979982,1718039460373,-604.21,0.00029997,4]
[328979983,1718039460383,-604.21,0.00029997,4]
[328979984,1718039460393,-500.0,0.00029997,4]
[328979985,1718039460403,-500.0,0.00029997,4]
[328979986,1718039460413,-500.0,0.00029997,4]
[328979987,1718039460423,-500.0,0.00029997,4]
[328979988,1718039460433,-500.0,0.00029997,4]
[328979989,1718039460443,-500.0,0.00029997,4]
[328979990,1718039460453,-500.0,0.00029997,4]
[328979991,1718039460463,-2054.88,0.00029997,4]
[328979992,1718039460473,-500.0,0.00029997,4]
[328979993,1718039460483,-2054.88,0.00029997,4]
[328979994,1718039460493,-500.0,0.00029997,4]
[328979995,1718039460503,-500.0,0.00029997,4]
[328979996,1718039460513,-2054.88,0.00029997,4]
[328979997,1718039460522,-350.50584602,0.00029997,4]
[328979998,1718039460532,-2054.88,0.00029997,4]
[328979999,1718039460542,-2054.88,0.00029997,4]
[328980000,1718039460551,-2054.88,0.00029997,4]
[328980001,1718039460561,-1864.61,0.00029997,4]
[328980002,1718039460571,-1864.61,0.00029997,4]
[328980003,1718039460581,-1864.61,0.00029997,4]
[328980004,1718039460591,-1864.61,0.00029997,4]
[328980005,1718039460602,-1864.61,0.00029997,4]
[328980006,1718039460611,-1864.61,0.00029997,4]
[328980007,1718039460621,-888.67,0.00029997,4]
[328980008,1718039460631,-888.67,0.00029997,4]
[328980009,1718039460640,-888.67,0.00029997,4]
[328980010,1718039460650,-888.67,0.00029997,4]
[328980011,1718039460659,-888.67,0.00029997,4]
[328980012,1718039460670,-500.0,0.00029997,4]
[328980013,1718039460680,-500.0,0.00029997,4]
[328980014,1718039460689,-500.0,0.00029997,4]
[328980015,1718039460699,-500.0,0.00029997,4]
[328980016,1718039460710,-500.0,0.00029997,4]
[328980017,1718039460720,-500.0,0.00029997,4]
[328980018,1718039460730,-500.0,0.00029997,4]
[328980019,1718039460740,-500.0,0.00029997,4]
[328980020,1718039460750,-500.0,0.00029997,4]
[328980021,1718039460760,-500.0,0.00029997,4]
[328980022,1718039460771,-500.0,0.00029997,4]
[328980023,1718039460781,-695.01,0.00029997,4]
[328980024,1718039460792,-695.01,0.00029997,4]
[328980025,1718039460802,-695.01,0.00029997,4]
[328980026,1718039460812,-695.01,0.00029997,4]
[328980027,1718039460823,-695.01,0.00029997,4]
[328980028,1718039460834,-500.0,0.00029997,4]
[328980029,1718039460845,-695.01,0.00029997,4]
[328980030,1718039460855,-500.0,0.00029997,4]
[328980031,1718039460865,-500.0,0.00029997,4]
[328980032,1718039460875,-500.0,0.00029997,4]
[328980033,1718039460886,-500.0,0.00029997,4]
[328980034,1718039460896,-500.0,0.00029997,4]
[328980035,1718039460906,-500.0,0.00029997,4]
[328980036,1718039460918,-170.94074838,0.00029997,4]
[328980037,1718039460928,-5095.93,0.00029997,4]
[328980038,1718039460938,-5095.93,0.00029997,4]
[328980039,1718039460949,-5095.93,0.00029997,4]
[328980040,1718039460961,-5095.93,0.00029997,4]
[328980041,1718039460971,-5095.93,0.00029997,4]
[328980042,1718039460982,-5095.93,0.00029997,4]
[328980043,1718039460992,-694.54,0.00029997,4]
[328980044,1718039461002,-694.54,0.00029997,4]
[328980045,1718039461012,-1357.33,0.00029997,4]
[328980046,1718039461021,-694.54,0.00029997,4]
[328980047,1718039461031,-1357.33,0.00029997,4]
[328980048,1718039461042,-694.54,0.00029997,4]
[328980049,1718039461052,-500.0,0.00029997,4]
[328980050,1718039461063,-1357.33,0.00029997,4]
[328980051,1718039461072,-694.54,0.00029997,4]
[328980052,1718039461082,-500.0,0.00029997,4]
[328980053,1718039461092,-694.54,0.00029997,4]
[328980054,1718039461102,-1357.33,0.00029997,4]
[328980055,1718039461112,-500.0,0.00029997,4]
[328980056,1718039461122,-1357.33,0.00029997,4]
[328980057,1718039461132,-500.0,0.00029997,4]
[328980058,1718039461142,-500.0,0.00029997,4]
[328980059,1718039461152,-1357.33,0.00029997,4]
[328980060,1718039461163,-241.90305937,0.00029997,4]
[328980061,1718039461173,-500.0,0.00029997,4]
[328980062,1718039461183,-500.0,0.00029997,4]
[328980063,1718039461198,-500.0,0.00029997,4]
[328980064,1718039461208,-500.0,0.00029997,4]
[328980065,1718039461218,-418.1,0.00029997,4]
[328980066,1718039461227,-500.0,0.00029997,4]
[328980067,1718039461237,-400.23895895,0.00029997,4]
[328980068,1718039461248,-5000.0,0.00029998,7]
[328980069,1718039461257,-155.0,0.00029998,2]
[328980070,1718039461267,-342.09828557,0.00029998,2]
[328980071,1718039461279,-9709.31553153,0.00029998,3]
[328980072,1718039461290,-863.57303464,0.00029998,3]
[328980073,1718039461300,-226.74150104,0.00029998,3]
[328980074,1718039461310,-5372.4747393,0.00029998,5]
[328980075,1718039461320,-4845.0,0.00029998,2]
[328980076,1718039461329,-481.85167187,0.00029998,2]
[328980077,1718039461340,-2137.58334898,0.00029998,2]
[328980078,1718039461350,-433.9696054,0.00029998,2]
[328980079,1718039461359,-268.65571135,0.00029998,2]
[328980080,1718039461369,-436.45543559,0.00029998,2]
[328980081,1718039461379,-155.0,0.00029998,2]
[328980082,1718039461388,-158.18758909,0.00029998,2]
[328980083,1718039461398,-155.0,0.00029998,2]
[328980084,1718039461408,-602.63672419,0.00029998,2]
[328980085,1718039461419,-792.23613721,0.00029998,2]
[328980086,1718039461429,-1331.04389151,0.00029998,7]
[328980087,1718039461438,-930.09212525,0.00029998,2]
[328980088,1718039461447,-3100.10909556,0.00029998,2]
[328980089,1718039461456,-3048.62593934,0.00029998,2]
[328980090,1718039461467,-2193.12420193,0.00029998,2]
[328980091,1718039461477,-544.85678975,0.00029998,2]
[328980092,1718039461486,-155.0,0.00029998,2]
[328980093,1718039461496,-2469.9030722,0.00029998,2]
[328980094,1718039461505,-488.84923657,0.00029998,2]
[328980095,1718039461515,-234.70114228,0.00029998,2]
[328980096,1718039461524,-624.74565801,0.00029998,2]
[328980097,1718039461534,-204.034,0.00029998,2]
[328980098,1718039461544,-645.14575684,0.00029998,2]
[328980099,1718039461553,-822.85522552,0.00029998,2]
[328980100,1718039461562,-1582.4939513,0.00029998,2]
[328980101,1718039461572,-268.78049174,0.00029998,2]
[328980102,1718039461582,-155.0,0.00029998,2]
[328980103,1718039461591,-334.86168633,0.00029998,2]
[328980104,1718039461601,-1348.57989397,0.00029998,2]
[328980105,1718039461611,-195.4977807,0.00029998,2]
[328980106,1718039461621,-482.74768726,0.00029998,2]
[328980107,1718039461631,-155.93763413,0.00029998,2]
[328980108,1718039461640,-156.19729204,0.00029998,2]
[328980109,1718039461650,-620.97725265,0.00029998,2]
[328980110,1718039461659,-393.8787183,0.00029998,2]
[328980111,1718039461671,-411.24369396,0.00029998,2]
[328980112,1718039461681,-171.17946158,0.00029998,2]
[328980113,1718039461691,-2682.57145036,0.00029998,2]
[328980114,1718039461702,-316.86419262,0.00029998,2]
[328980115,1718039461713,-733.07487486,0.00029998,2]
[328980116,1718039461723,-188.39488201,0.00029998,2]
[328980117,1718039461733,-1980.83866895,0.00029998,2]
[328980118,1718039461742,-6253.29174589,0.00029998,2]
[328980119,1718039461752,-174.54561427,0.00029998,2]
[328980120,1718039461762,-789.37013607,0.00029998,2]
[328980121,1718039461773,-209.72951556,0.00029998,2]
[328980122,1718039461784,-216.91144525,0.00029998,2]
[328980123,1718039461794,-29436.06707463,0.00029998,2]
[328980124,1718039461805,-6795.64360929,0.00029998,2]
[328980125,1718039461816,-706.32929204,0.00029998,2]
[328980126,1718039461827,-225.04953132,0.00029998,2]
[328980127,1718039461837,-325.64160337,0.00029998,2]
[328980128,1718039461848,-792912.25888029,0.00029998,2]
[328980129,1718039461959,-349.89,0.00014597,2]
[328980130,1718039461972,-655.0,0.00014597,2]
[328980131,1718039461985,-484.46212453,0.00014597,2]
[328980132,1718039462003,-1621.2205633,0.00014597,2]
[328980133,1718039462016,-2017.62724224,0.00014597,2]
[328980134,1718039462029,-466.70474391,0.00014597,2]
[328980135,1718039462040,-1131.49587958,0.00014597,2]
[328980136,1718039462052,-1039.42793457,0.00014597,2]
[328980137,1718039462064,-209232.43771964,0.00014597,2]
[328980138,1718039462208,-423.69654913,0.00014597,2]
[328980139,1718039462224,-4886.4734566,0.00014597,2]
[328980140,1718039462236,-21138.77639407,0.00014597,2]
[328980141,1718039462249,-3346.52187514,0.00014597,2]
[328980142,1718039462260,-523.21660441,0.000299,2]
[328980143,1718039462271,-185.32395157,0.00029996,2]
[328980144,1718039462285,-31945.96447365,0.00029998,2]
[328980145,1718039462299,-5979.40394953,0.00029998,2]
[328980146,1718040336158,-168.37013378,0.00014405,2]
[328980147,1718040440710,-187.1155531,0.00014155,2]
[328980149,1718040579045,756.272884,0.00013976,2]
[328980150,1718040619225,177.17138992,0.00013945,2]
[328980162,1718040632666,-645.83379313,0.00014042,2]
[328980163,1718040632678,-334.23426842,0.00014043,2]
[328980164,1718040632688,-155.0,0.00014044,2]
[328980165,1718040632699,-621.30582278,0.00014044,2]
[328980166,1718040632711,-597.90464012,0.00014044,2]
[328980167,1718040632722,-155.0,0.00014045,2]
[328980168,1718040632732,-122.25343262,0.00014045,2]
[328980169,1718040632960,-930.85571191,0.00014045,2]
[328980170,1718040632971,-155.0,0.00014045,2]
[328980171,1718040632981,-150.0,0.00014045,2]
[328980172,1718040632992,-150.0,0.00014045,2]
[328980173,1718040633002,-155.0,0.00014046,2]
[328980174,1718040633013,-2822.74124506,0.00014046,2]
[328980175,1718040633023,-1306.07571937,0.00014154,2]
[328980176,1718040633036,-1655.96580498,0.00014154,2]
[328980177,1718040633046,-499.99,0.00014155,2]
[328980178,1718040633057,-999.99,0.00014155,2]
[328980179,1718040633067,-825.74,0.00014155,2]
[328980180,1718040633077,-1067.75598538,0.00014328,2]
[328980181,1718040633088,-155.0,0.00014329,2]
[328980182,1718040633098,-4898.43,0.00014329,2]
[328980183,1718040633109,-1577.29,0.00014329,2]
[328980184,1718040633123,-293.74,0.00014329,2]
[328980185,1718040633133,-792.46810918,0.00014596,2]
[328980186,1718040633144,-155.0,0.00014597,2]
[328980187,1718040633154,-10076.5,0.00014597,2]
[328980188,1718040633164,-621.20003601,0.00017258,2]
[328980189,1718040633175,-155.0,0.00017259,2]
[328980190,1718040633187,-2445.45,0.00018746,2]
[328980191,1718040633197,-1679.5795,0.00018756,2]
[328980192,1718040633208,-164.0223231,0.00018854,2]
[328980193,1718040633218,-8252.59167054,0.00018856,2]
[328980194,1718040633228,-5000.0,0.00018856,2]
[328980195,1718040633239,-5000.0,0.00018856,2]
[328980196,1718040633249,-5000.0,0.00018856,2]
[328980197,1718040633260,-5000.0,0.00018856,2]
[328980198,1718040633271,-1981.57791662,0.0002,2]
[328980200,1718040633282,-250.0,0.00021918,2]
[328980202,1718040633293,-216.99907853,0.00023987,2]
[328980204,1718040633303,-168.3692821,0.00023988,2]
[328980206,1718040633313,-549.50595062,0.00023998,2]
[328980208,1718040633323,-725.97,0.0002414,2]
[328980210,1718040633333,-180.0,0.0002423,2]
[328980212,1718040633343,-156.08,0.00024384,2]
[328980214,1718040633353,-154.42,0.00024384,2]
[328980216,1718040633364,-23890.0,0.00024397,2]
[328980218,1718040633374,-555.83,0.00024406,2]
[328980220,1718040633384,-337.78,0.00024469,2]
[328980222,1718040633395,-164.14976815,0.000249,2]
[328980224,1718040633405,-320.98167556,0.000249,2]
[328980226,1718040633415,-171.059961,0.000249,2]
[328980228,1718040633426,-3320.06041552,0.000249,2]
[328980230,1718040633436,-151.87,0.0002499,2]
[328980232,1718040633447,-542.2859949,0.00024997,2]
[328980234,1718040633457,-155.0,0.00024997,2]
[328980236,1718040633468,-350.0,0.00024998,2]
[328980238,1718040633479,-357.07679793,0.00024998,2]
[328980240,1718040633489,-393144.57605509,0.00024999,2]
[328980242,1718040633502,-810.75901543,0.00024999,2]
[328980244,1718040633515,-1330.01497133,0.00024999,2]
[328980250,1718040633621,-122584.52794369,0.00024999,2]
[328980255,1718040633665,-1209.45727771,0.00024999,2]
[328980257,1718040633680,-11299.98285621,0.00024999,2]
[328980259,1718040633692,-1029.61014544,0.00024999,2]
[328980267,1718040638826,-159939.96385524,0.00024999,2]
[328980268,1718040638837,-852.23448808,0.00025,13]
[328980269,1718040638848,-930.57594584,0.00025,2]
[328980270,1718040638859,-267624.76707401,0.00025,2]
[328980271,1718040638898,-51480.76652093,0.00025,2]
[328980272,1718040639203,-85469.65798881,0.00025,2]
[328980273,1718040639213,-706.630092,0.00025035,2]
[328980274,1718040639223,-155.0,0.00025035,2]
[328980275,1718040639234,-176.24870704,0.00025036,2]
[328980276,1718040639245,-3676.16,0.00025136,2]
[328980277,1718040639256,-155.45,0.00025205,2]
[328980278,1718040639266,-155.45,0.00025643,2]
[328980279,1718040639278,-1000.0,0.00025654,2]
[328980280,1718040639288,-154.01,0.00025654,2]
[328980281,1718040639299,-839.7,0.00025692,2]
[328980282,1718040639310,-4887.59,0.00025695,2]
[328980283,1718040639320,-2360.01,0.00025785,2]
[328980284,1718040639329,-1903.0,0.00026,2]
[328980285,1718040639338,-155.91427048,0.00026013,2]
[328980286,1718040639348,-175.91858515,0.00026079,2]
[328980287,1718040639357,-155.45,0.0002608,2]
[328980288,1718040639367,-250.0,0.00026106,2]
[328980289,1718040639378,-154.94726371,0.00026162,2]
[328980290,1718040639388,-175.91858515,0.00026162,2]
[328980291,1718040639399,-175.91858515,0.00026166,2]
[328980292,1718040639412,-153.35399962,0.00026182,2]
[328980293,1718040639423,-3849.688,0.00026319,2]
[328980294,1718040639434,-479.634,0.00026319,2]